{"text_format":"3","workbook":"xlsx","n_sheets":1,"sheets":["Kalkulačka splátok pôžičky"],"not_rendered":{"defined_names":9},"read":"whole","date_system":"1900"}

{"sheet":"Kalkulačka splátok pôžičky","index":0,"n_rows":22,"n_cols":13,"rows_kept":22,"merged":[[1,1,1,3],[1,6,2,8],[1,11,2,12],[2,1,2,3],[6,5,6,6],[7,5,7,6],[10,2,10,5],[10,6,10,8],[10,9,10,12],[18,2,18,12]]}
[]
[null,"VYSOKOŠKOLSKÁ PÔŽIČKA ",{"$nulls":4},{"v":50000,"d":"50,000 €"},{"$nulls":4},"2011-05-10"]
[null,"KALKULAČKA "]
[]
[null," Podľa návrhu by vaše celkové mesačné splátky študentskej pôžičky nemali presahovať 8 % vášho prvého ročného platu."]
[]
[null,null,"Kombinovaná aktuálna mesačná platba je:",null,null,{"$f":"VysokoškolskéPôžičky[[#Totals],[Aktuálna mesačná platba]]","v":{"v":328.58590726058833,"d":"328.59 €"}},null,null,"Kombinovaná plánovaná platba je:",{"$nulls":3},{"$f":"VysokoškolskéPôžičky[[#Totals],[Plánovaná platba]]","v":{"v":328.58590726058833,"d":"328.59 €"}}]
[null,null,"Percento mesačného príjmu:",null,null,{"$f":"VysokoškolskéPôžičky[[#Totals],[Aktuálna mesačná platba]]/OdhadovanáMesačnáMzda","v":{"v":0.07886061774254119,"d":"7.89%"}},null,null,"  Percento mesačného príjmu:",{"$nulls":3},{"$f":"VysokoškolskéPôžičky[[#Totals],[Plánovaná platba]]/OdhadovanáMesačnáMzda","v":{"v":0.07886061774254119,"d":"7.89%"}}]
[]
[]
[null,null,"VŠEOBECNÉ PODROBNOSTI O PLATBE",{"$nulls":3},"ÚDAJE O SPLÁCANÍ PÔŽIČKY",null,null,"PODROBNOSTI O PLATBE"]
[null,null,"Č. pôžičky","Veriteľ","Čiastka pôžičky","Ročná\núroková sadzba","Počiatočný dátum","Trvanie (roky)","Koncový dátum","Aktuálna mesačná platba","Celkový\núrok","Plánovaná platba","Ročná\nplatba"]
[null,null,"10998M88","Veriteľ 1",{"v":10000,"d":"10,000.00 €"},{"v":0.05,"d":"5.00%"},"2011-04-01",10,{"$f":"IF(AND(VysokoškolskéPôžičky[[#This Row],[Počiatočný dátum]]>0,VysokoškolskéPôžičky[[#This Row],[Trvanie (roky)]]>0),EDATE(VysokoškolskéPôžičky[[#This Row],[Počiatočný dátum]],VysokoškolskéPôžičky[[#This Row],[Trvanie (roky)]]*12),\"\")","v":"2021-04-01"},{"$f":"IF(AND(ZačiatokPôžičkyLDnes,COUNT(VysokoškolskéPôžičky[[#This Row],[Čiastka pôžičky]]:VysokoškolskéPôžičky[[#This Row],[Trvanie (roky)]])=4,VysokoškolskéPôžičky[[#This Row],[Počiatočný dátum]]<TODAY()),PMT(VysokoškolskéPôžičky[[#This Row],[Ročná\núroková sadzba]]/12,VysokoškolskéPôžičky[[#This Row],[Trvanie (roky)]]*12,-VysokoškolskéPôžičky[[#This Row],[Čiastka pôžičky]],0,0),\"\")","v":{"v":106.06551523907524,"d":"106.07 €"}},{"$f":"IFERROR((VysokoškolskéPôžičky[[#This Row],[Plánovaná platba]]*(VysokoškolskéPôžičky[[#This Row],[Trvanie (roky)]]*12))-VysokoškolskéPôžičky[[#This Row],[Čiastka pôžičky]],\"\")","v":{"v":2727.8618286890287,"d":"2,727.86 €"}},{"$f":"IF(COUNTA(VysokoškolskéPôžičky[[#This Row],[Čiastka pôžičky]]:VysokoškolskéPôžičky[[#This Row],[Trvanie (roky)]])<>4,\"\",PMT(VysokoškolskéPôžičky[[#This Row],[Ročná\núroková sadzba]]/12,VysokoškolskéPôžičky[[#This Row],[Trvanie (roky)]]*12,-VysokoškolskéPôžičky[[#This Row],[Čiastka pôžičky]],0,0))","v":{"v":106.06551523907524,"d":"106.07 €"}},{"$f":"IFERROR(VysokoškolskéPôžičky[[#This Row],[Plánovaná platba]]*12,\"\")","v":{"v":1272.7861828689029,"d":"1,272.79 €"}}]
[null,null,"20987N87","Veriteľ 2",{"v":8000,"d":"8,000.00 €"},{"v":0.05,"d":"5.00%"},"2011-05-01",10,{"$f":"IF(AND(VysokoškolskéPôžičky[[#This Row],[Počiatočný dátum]]>0,VysokoškolskéPôžičky[[#This Row],[Trvanie (roky)]]>0),EDATE(VysokoškolskéPôžičky[[#This Row],[Počiatočný dátum]],VysokoškolskéPôžičky[[#This Row],[Trvanie (roky)]]*12),\"\")","v":"2021-05-01"},{"$f":"IF(AND(ZačiatokPôžičkyLDnes,COUNT(VysokoškolskéPôžičky[[#This Row],[Čiastka pôžičky]]:VysokoškolskéPôžičky[[#This Row],[Trvanie (roky)]])=4,VysokoškolskéPôžičky[[#This Row],[Počiatočný dátum]]<TODAY()),PMT(VysokoškolskéPôžičky[[#This Row],[Ročná\núroková sadzba]]/12,VysokoškolskéPôžičky[[#This Row],[Trvanie (roky)]]*12,-VysokoškolskéPôžičky[[#This Row],[Čiastka pôžičky]],0,0),\"\")","v":{"v":84.85241219126019,"d":"84.85 €"}},{"$f":"IFERROR((VysokoškolskéPôžičky[[#This Row],[Plánovaná platba]]*(VysokoškolskéPôžičky[[#This Row],[Trvanie (roky)]]*12))-VysokoškolskéPôžičky[[#This Row],[Čiastka pôžičky]],\"\")","v":{"v":2182.289462951223,"d":"2,182.29 €"}},{"$f":"IF(COUNTA(VysokoškolskéPôžičky[[#This Row],[Čiastka pôžičky]]:VysokoškolskéPôžičky[[#This Row],[Trvanie (roky)]])<>4,\"\",PMT(VysokoškolskéPôžičky[[#This Row],[Ročná\núroková sadzba]]/12,VysokoškolskéPôžičky[[#This Row],[Trvanie (roky)]]*12,-VysokoškolskéPôžičky[[#This Row],[Čiastka pôžičky]],0,0))","v":{"v":84.85241219126019,"d":"84.85 €"}},{"$f":"IFERROR(VysokoškolskéPôžičky[[#This Row],[Plánovaná platba]]*12,\"\")","v":{"v":1018.2289462951222,"d":"1,018.23 €"}}]
[null,null,"36785LM","Veriteľ 3",{"v":6000,"d":"6,000.00 €"},{"v":0.045,"d":"4.50%"},"2012-03-01",10,{"$f":"IF(AND(VysokoškolskéPôžičky[[#This Row],[Počiatočný dátum]]>0,VysokoškolskéPôžičky[[#This Row],[Trvanie (roky)]]>0),EDATE(VysokoškolskéPôžičky[[#This Row],[Počiatočný dátum]],VysokoškolskéPôžičky[[#This Row],[Trvanie (roky)]]*12),\"\")","v":"2022-03-01"},{"$f":"IF(AND(ZačiatokPôžičkyLDnes,COUNT(VysokoškolskéPôžičky[[#This Row],[Čiastka pôžičky]]:VysokoškolskéPôžičky[[#This Row],[Trvanie (roky)]])=4,VysokoškolskéPôžičky[[#This Row],[Počiatočný dátum]]<TODAY()),PMT(VysokoškolskéPôžičky[[#This Row],[Ročná\núroková sadzba]]/12,VysokoškolskéPôžičky[[#This Row],[Trvanie (roky)]]*12,-VysokoškolskéPôžičky[[#This Row],[Čiastka pôžičky]],0,0),\"\")","v":{"v":62.18304525420918,"d":"62.18 €"}},{"$f":"IFERROR((VysokoškolskéPôžičky[[#This Row],[Plánovaná platba]]*(VysokoškolskéPôžičky[[#This Row],[Trvanie (roky)]]*12))-VysokoškolskéPôžičky[[#This Row],[Čiastka pôžičky]],\"\")","v":{"v":1461.9654305051017,"d":"1,461.97 €"}},{"$f":"IF(COUNTA(VysokoškolskéPôžičky[[#This Row],[Čiastka pôžičky]]:VysokoškolskéPôžičky[[#This Row],[Trvanie (roky)]])<>4,\"\",PMT(VysokoškolskéPôžičky[[#This Row],[Ročná\núroková sadzba]]/12,VysokoškolskéPôžičky[[#This Row],[Trvanie (roky)]]*12,-VysokoškolskéPôžičky[[#This Row],[Čiastka pôžičky]],0,0))","v":{"v":62.18304525420918,"d":"62.18 €"}},{"$f":"IFERROR(VysokoškolskéPôžičky[[#This Row],[Plánovaná platba]]*12,\"\")","v":{"v":746.1965430505102,"d":"746.20 €"}}]
[null,null,"765R43","Veriteľ 4",{"v":4000,"d":"4,000.00 €"},{"v":0.05,"d":"5.00%"},"2012-05-01",5,{"$f":"IF(AND(VysokoškolskéPôžičky[[#This Row],[Počiatočný dátum]]>0,VysokoškolskéPôžičky[[#This Row],[Trvanie (roky)]]>0),EDATE(VysokoškolskéPôžičky[[#This Row],[Počiatočný dátum]],VysokoškolskéPôžičky[[#This Row],[Trvanie (roky)]]*12),\"\")","v":"2017-05-01"},{"$f":"IF(AND(ZačiatokPôžičkyLDnes,COUNT(VysokoškolskéPôžičky[[#This Row],[Čiastka pôžičky]]:VysokoškolskéPôžičky[[#This Row],[Trvanie (roky)]])=4,VysokoškolskéPôžičky[[#This Row],[Počiatočný dátum]]<TODAY()),PMT(VysokoškolskéPôžičky[[#This Row],[Ročná\núroková sadzba]]/12,VysokoškolskéPôžičky[[#This Row],[Trvanie (roky)]]*12,-VysokoškolskéPôžičky[[#This Row],[Čiastka pôžičky]],0,0),\"\")","v":{"v":75.48493457604374,"d":"75.48 €"}},{"$f":"IFERROR((VysokoškolskéPôžičky[[#This Row],[Plánovaná platba]]*(VysokoškolskéPôžičky[[#This Row],[Trvanie (roky)]]*12))-VysokoškolskéPôžičky[[#This Row],[Čiastka pôžičky]],\"\")","v":{"v":529.0960745626244,"d":"529.10 €"}},{"$f":"IF(COUNTA(VysokoškolskéPôžičky[[#This Row],[Čiastka pôžičky]]:VysokoškolskéPôžičky[[#This Row],[Trvanie (roky)]])<>4,\"\",PMT(VysokoškolskéPôžičky[[#This Row],[Ročná\núroková sadzba]]/12,VysokoškolskéPôžičky[[#This Row],[Trvanie (roky)]]*12,-VysokoškolskéPôžičky[[#This Row],[Čiastka pôžičky]],0,0))","v":{"v":75.48493457604374,"d":"75.48 €"}},{"$f":"IFERROR(VysokoškolskéPôžičky[[#This Row],[Plánovaná platba]]*12,\"\")","v":{"v":905.8192149125249,"d":"905.82 €"}}]
[null,null,"Súčet",null,{"$f":"SUBTOTAL(109,VysokoškolskéPôžičky[Čiastka pôžičky])","v":{"v":28000,"d":"28,000.00 €"}},{"$nulls":4},{"$f":"SUBTOTAL(109,VysokoškolskéPôžičky[Aktuálna mesačná platba])","v":{"v":328.58590726058833,"d":"328.59 €"}},{"$f":"SUBTOTAL(109,VysokoškolskéPôžičky[Celkový\núrok])","v":{"v":6901.212796707978,"d":"6,901.21 €"}},{"$f":"SUBTOTAL(109,VysokoškolskéPôžičky[Plánovaná platba])","v":{"v":328.58590726058833,"d":"328.59 €"}},{"$f":"SUBTOTAL(109,VysokoškolskéPôžičky[Ročná\nplatba])","v":{"v":3943.03088712706,"d":"3,943.03 €"}}]
[null,null,"Priemery",null,{"$f":"AVERAGE(VysokoškolskéPôžičky[Čiastka pôžičky])","v":{"v":7000,"d":"7,000.00 €"}},{"$f":"AVERAGE(VysokoškolskéPôžičky[Ročná\núroková sadzba])","v":{"v":0.04875,"d":"4.88%"}},{"$nulls":4},{"$f":"AVERAGE(VysokoškolskéPôžičky[Celkový\núrok])","v":{"v":1725.3031991769944,"d":"1,725.30 €"}},null,{"$f":"AVERAGE(VysokoškolskéPôžičky[Ročná\nplatba])","v":{"v":985.757721781765,"d":"985.76 €"}}]
[]
[{"$nulls":10},"Celkové konsolidované splatenie pôžičky:",null,{"$f":"VysokoškolskéPôžičky[[#Totals],[Čiastka pôžičky]]+VysokoškolskéPôžičky[[#Totals],[Celkový\núrok]]","v":{"v":34901.21279670798,"d":"34,901.21 €"}}]
[]
[{"$nulls":10},"Odhadovaný mesačný príjem po ukončení štúdia:",null,{"$f":"(OdhadovanáRočnáMzda/12)","v":{"v":4166.666666666667,"d":"4,166.67 €"}}]